[Event "44th Chess Olympiad Women 2022"]
[Site "Chennai"]
[Date "2022.08.09"]
[Round "11.17"]
[White "Gomez Barrera, Javiera Belen"]
[Black "Bulmaga, Irina"]
[Result "1/2-1/2"]
[ECO "C54"]
[WhiteElo "2210"]
[BlackElo "2394"]
[Annotator "RC"]
[PlyCount "92"]
[EventDate "2022.07.29"]
[EventType "team-tourn"]
[EventCountry "IND"]
[SourceTitle "playchess.com"]
[Source "ChessBase"]
[SourceQuality "1"]
[WhiteTeam "Chile"]
[BlackTeam "Romania"]
[WhiteTeamCountry "CHI"]
[BlackTeamCountry "ROU"]
[TimeControl "40/5400+30:1800+30"]

1. e4 {[%emt 0:00:04]} e5 {[%emt 0:00:08]} 2. Nf3 {[%emt 0:00:14]} Nc6 {[%emt 0:00:09]} 3. Bc4 {[%emt 0:00:12]} Bc5 {[%emt 0:00:10]} 4. c3 {[%emt 0:00:09]} Nf6 {[%emt 0:00:14]} 5. d3 {[%emt 0:00:06]} d6 {[%emt 0:00:16]} 6. Bg5 {[%emt 0:00:53]} h6 {[%emt 0:00:23]} 7. Bh4 {[%emt 0:00:15]} g5 {[%emt 0:03:12]} 8. Bg3 {[%emt 0:00:15]} Qe7 {[%emt 0:01:15]} 9. O-O {[%emt 0:07:11]} a6 {[%emt 0:09:39]} 10. a4 {[%emt 0:00:53]} Ba7 {[%emt 0:03:39]} 11. b4 {[%emt 0:08:01]} Bg4 {[%emt 0:06:18]} 12. Nbd2 {[%emt 0:27:43]} Nh5 {[%emt 0:06:25]} 13. Kh1 {[%emt 0:01:57]} Nd8 {[%emt 0:13:40]} 14. a5 {[%emt 0:24:07]} c6 {[%emt 0:03:00]} 15. Qe1 {[%emt 0:09:07]} Ne6 {[%emt 0:09:35]} 16. h3 {[%emt 0:01:40]} Bxf3 {[%emt 0:05:22]} 17. Nxf3 {[%emt 0:00:05]} Nhf4 {[%emt 0:00:23]} 18. Rd1 {[%emt 0:07:56]} g4 {[%emt 0:01:47]} 19. hxg4 {[%emt 0:00:40]} h5 {[%emt 0:00:29]} 20. g5 {[%emt 0:01:47]} Nxg5 {[%emt 0:04:29]} 21. Nh4 {[%emt 0:02:43]} O-O-O {[%emt 0:01:50]} 22. d4 {[%emt 0:01:25]} Qf6 {[%emt 0:02:24]} 23. Qe3 {[%emt 0:01:57]} Kb8 {[%emt 0:00:41]} 24. Rd2 {[%emt 0:01:31]} Nge6 {[%emt 0:03:43]} 25. Rfd1 {[%emt 0:01:26]} exd4 {[%emt 0:03:45]} 26. cxd4 {[%emt 0:00:10]} d5 {[%emt 0:00:27]} 27. exd5 {[%emt 0:00:35]} cxd5 {[%emt 0:00:03]} 28. Bf1 {[%emt 0:00:46]} Ka8 {[%emt 0:00:15]} 29. b5 {[%emt 0:00:36]} axb5 {[%emt 0:01:54]} 30. Bxb5 {[%emt 0:00:10]} Rd6 {[%emt 0:05:38]} 31. Bf1 {[%emt 0:00:53]} Rg8 {[%emt 0:00:55]} 32. a6 {[%emt 0:00:14]} bxa6 {[%emt 0:02:20]} 33. Qa3 {[%emt 0:00:35]} Rb6 {[%emt 0:01:38]} 34. Bxa6 {[%emt 0:00:36]} Nxd4 {[%emt 0:05:10]} 35. Rxd4 {[%emt 0:00:32]} Rg4 {[%emt 0:03:26]} 36. Nf3 {[%emt 0:00:33]} Rxa6 {[%emt 0:01:09]} 37. Qf8+ {[%emt 0:00:26]} Bb8 {[%emt 0:00:49]} 38. Rxd5 {[%emt 0:00:32]} Rxg3 {[%emt 0:01:43]} 39. Rd8 {[%emt 0:00:26]} Qb2 {[%emt 0:01:01]} 40. Rxb8+ {[%emt 0:00:31]} Qxb8 {[%emt 0:00:09]} 41. Qxb8+ {[%emt 0:16:53]} Kxb8 {[%emt 0:00:10]} 42. fxg3 {[%emt 0:00:06]} Ne2 {[%emt 0:01:41]} 43. Kh2 {[%emt 0:02:10]} Rg6 {[%emt 0:03:08]} 44. Ne5 {[%emt 0:01:17]} Rg5 {[%emt 0:10:03]} 45. Nxf7 {[%emt 0:01:44]} Rxg3 {[%emt 0:01:54]} 46. Ne5 {[%emt 0:03:07]} Rg5 {[%emt 0:03:46]} 1/2-1/2

[Event "44th Chess Olympiad Women 2022"]
[Site "Chennai"]
[Date "2022.08.09"]
[Round "11.17"]
[White "Lehaci, Miruna-Daria"]
[Black "Sanchez Tobar, Francisca Valenti"]
[Result "1/2-1/2"]
[ECO "E90"]
[WhiteElo "2193"]
[BlackElo "1839"]
[Annotator "RC"]
[PlyCount "95"]
[EventDate "2022.07.29"]
[EventType "team-tourn"]
[EventCountry "IND"]
[SourceTitle "playchess.com"]
[Source "ChessBase"]
[SourceQuality "1"]
[WhiteTeam "Romania"]
[BlackTeam "Chile"]
[WhiteTeamCountry "ROU"]
[BlackTeamCountry "CHI"]
[TimeControl "40/5400+30:1800+30"]

1. d4 {[%emt 0:00:02]} Nf6 {[%emt 0:00:05]} 2. Nf3 {[%emt 0:00:04]} g6 {[%emt 0:00:06]} 3. c4 {[%emt 0:00:03]} Bg7 {[%emt 0:00:11]} 4. Nc3 {[%emt 0:00:03]} d6 {[%emt 0:00:07]} 5. e4 {[%emt 0:00:19]} O-O {[%emt 0:00:10]} 6. h3 {[%emt 0:00:04]} e5 {[%emt 0:01:08]} 7. d5 {[%emt 0:00:03]} a5 {[%emt 0:00:10]} 8. Bd3 {[%emt 0:00:05]} Na6 {[%emt 0:00:07]} 9. a3 {[%emt 0:00:26]} Nd7 {[%emt 0:00:20]} 10. b4 {[%emt 0:03:36]} b6 {[%emt 0:01:09]} 11. O-O {[%emt 0:01:28]} f5 {[%emt 0:01:40]} 12. Rb1 {[%emt 0:04:13]} axb4 {[%emt 0:07:58]} 13. axb4 {[%emt 0:00:10]} f4 {[%emt 0:00:26]} 14. Ne1 {[%emt 0:05:08]} Nf6 {[%emt 0:04:04]} 15. Be2 {[%emt 0:03:45]} Bd7 {[%emt 0:10:41]} 16. Nd3 {[%emt 0:02:05]} Qe7 {[%emt 0:00:48]} 17. Ra1 {[%emt 0:10:00]} g5 {[%emt 0:03:37]} 18. Ba3 {[%emt 0:09:33]} Qf7 {[%emt 0:02:28]} 19. c5 {[%emt 0:01:25]} Qg6 {[%emt 0:25:37]} 20. f3 {[%emt 0:07:00]} h5 {[%emt 0:05:21]} 21. cxb6 {[%emt 0:14:24]} cxb6 {[%emt 0:01:46]} 22. Nf2 {[%emt 0:00:14]} Rfc8 {[%emt 0:01:16]} 23. Nb5 {[%emt 0:01:38]} Bf8 {[%emt 0:01:11]} 24. Qd3 {[%emt 0:01:47]} g4 {[%emt 0:04:50]} 25. hxg4 {[%emt 0:01:29]} hxg4 {[%emt 0:02:51]} 26. fxg4 {[%emt 0:03:14]} Bxg4 {[%emt 0:01:02]} 27. Nxg4 {[%emt 0:00:31]} Nxg4 {[%emt 0:00:04]} 28. Bxg4 {[%emt 0:14:36]} Qxg4 {[%emt 0:00:14]} 29. Rac1 {[%emt 0:03:22]} Rd8 {[%emt 0:11:57]} 30. Rc6 {[%emt 0:03:34]} Rd7 {[%emt 0:01:22]} 31. Qf3 {[%emt 0:01:56]} Qh4 {[%emt 0:03:10]} 32. Qh3 {[%emt 0:03:35]} Qxh3 {[%emt 0:02:11]} 33. gxh3 {[%emt 0:00:04]} Nc7 {[%emt 0:01:40]} 34. Nxc7 {[%emt 0:01:58]} Rxa3 {[%emt 0:00:05]} 35. Ne6 {[%emt 0:00:03]} Be7 {[%emt 0:04:22]} 36. Rxb6 {[%emt 0:00:53]} Rxh3 {[%emt 0:00:36]} 37. Rb8+ {[%emt 0:01:34]} Kf7 {[%emt 0:00:42]} 38. Rf8+ {[%emt 0:02:41]} Bxf8 {[%emt 0:01:45]} 39. Ng5+ {[%emt 0:00:04]} Kf6 {[%emt 0:01:00]} 40. Nxh3 {[%emt 0:00:05]} Rg7+ {[%emt 0:00:21]} 41. Kh2 {[%emt 0:30:46]} Rb7 {[%emt 0:30:23]} 42. Rb1 {[%emt 0:00:29]} Rb5 {[%emt 0:01:18]} 43. Nf2 {[%emt 0:01:13]} Be7 {[%emt 0:00:15]} 44. Nd1 {[%emt 0:00:11]} Bd8 {[%emt 0:00:30]} 45. Nc3 {[%emt 0:00:08]} Rb7 {[%emt 0:00:28]} 46. b5 {[%emt 0:00:00]} Bb6 {[%emt 0:06:15]} 47. Na4 {[%emt 0:00:00]} Bd4 {[%emt 0:00:00]} 48. b6 {[%emt 0:00:00]} 1/2-1/2

[Event "44th Chess Olympiad Women 2022"]
[Site "Chennai"]
[Date "2022.08.09"]
[Round "11.17"]
[White "Toro Pradenas, Maria Jose"]
[Black "Cosma, Elena-Luminita"]
[Result "1/2-1/2"]
[ECO "C11"]
[WhiteElo "1945"]
[BlackElo "2248"]
[Annotator "RC"]
[PlyCount "88"]
[EventDate "2022.07.29"]
[EventType "team-tourn"]
[EventCountry "IND"]
[SourceTitle "playchess.com"]
[Source "ChessBase"]
[SourceQuality "1"]
[WhiteTeam "Chile"]
[BlackTeam "Romania"]
[WhiteTeamCountry "CHI"]
[BlackTeamCountry "ROU"]
[TimeControl "40/5400+30:1800+30"]

1. e4 {[%emt 0:00:02]} e6 {[%emt 0:00:09]} 2. d4 {[%emt 0:00:06]} d5 {[%emt 0:00:07]} 3. Nc3 {[%emt 0:00:03]} Nf6 {[%emt 0:00:06]} 4. e5 {[%emt 0:00:04]} Nfd7 {[%emt 0:00:05]} 5. f4 {[%emt 0:00:19]} c5 {[%emt 0:00:11]} 6. Nf3 {[%emt 0:00:06]} Nc6 {[%emt 0:00:11]} 7. Be3 {[%emt 0:00:10]} a6 {[%emt 0:00:07]} 8. Qd2 {[%emt 0:01:10]} b5 {[%emt 0:00:08]} 9. a3 {[%emt 0:03:31]} Qa5 {[%emt 0:01:14]} 10. dxc5 {[%emt 0:05:26]} Bxc5 {[%emt 0:05:04]} 11. Bxc5 {[%emt 0:09:20]} Nxc5 {[%emt 0:00:08]} 12. Nd4 {[%emt 0:00:08]} Qb6 {[%emt 0:12:28]} 13. Nxc6 {[%emt 0:11:03]} Qxc6 {[%emt 0:00:39]} 14. b4 {[%emt 0:07:09]} Ne4 {[%emt 0:05:35]} 15. Nxe4 {[%emt 0:00:59]} dxe4 {[%emt 0:00:04]} 16. c4 {[%emt 0:02:07]} bxc4 {[%emt 0:00:51]} 17. Rc1 {[%emt 0:02:52]} O-O {[%emt 0:04:01]} 18. Rxc4 {[%emt 0:05:18]} Qa4 {[%emt 0:06:14]} 19. Rc3 {[%emt 0:28:16]} Bb7 {[%emt 0:06:15]} 20. Be2 {[%emt 0:01:42]} Rac8 {[%emt 0:05:36]} 21. Kf2 {[%emt 0:17:57]} Rxc3 {[%emt 0:14:13]} 22. Qxc3 {[%emt 0:00:05]} Rc8 {[%emt 0:00:06]} 23. Qe3 {[%emt 0:00:54]} h6 {[%emt 0:12:18]} 24. Rc1 {[%emt 0:00:21]} Rxc1 {[%emt 0:04:54]} 25. Qxc1 {[%emt 0:00:04]} Qb3 {[%emt 0:00:27]} 26. Qe3 {[%emt 0:02:01]} Qb2 {[%emt 0:01:29]} 27. Qb6 {[%emt 0:01:01]} Bd5 {[%emt 0:00:37]} 28. Qe3 {[%emt 0:01:14]} Bc4 {[%emt 0:04:39]} 29. Qxe4 {[%emt 0:00:12]} Bxe2 {[%emt 0:00:05]} 30. Qxe2 {[%emt 0:00:03]} Qxa3 {[%emt 0:00:06]} 31. Qc4 {[%emt 0:00:57]} g6 {[%emt 0:03:06]} 32. Qc8+ {[%emt 0:00:49]} Kg7 {[%emt 0:00:16]} 33. Qc5 {[%emt 0:00:30]} Qd3 {[%emt 0:01:05]} 34. Qe7 {[%emt 0:00:50]} h5 {[%emt 0:01:54]} 35. g3 {[%emt 0:00:18]} Qd2+ {[%emt 0:02:10]} 36. Kf3 {[%emt 0:00:20]} Qxh2 {[%emt 0:02:03]} 37. Qf6+ {[%emt 0:00:21]} Kg8 {[%emt 0:00:05]} 38. Qd8+ {[%emt 0:00:23]} Kh7 {[%emt 0:00:05]} 39. Qe7 {[%emt 0:00:51]} Qh1+ {[%emt 0:04:04]} 40. Kf2 {[%emt 0:00:30]} Kg8 {[%emt 0:01:14]} 41. Qd8+ {[%emt 0:30:43]} Kh7 {[%emt 0:31:48]} 42. Qe7 {[%emt 0:00:00]} Kg7 {[%emt 0:00:00]} 43. Qf6+ {[%emt 0:00:00]} Kg8 {[%emt 0:00:00]} 44. Qd8+ {[%emt 0:00:00]} Kg7 {[%emt 0:00:00]} 1/2-1/2

[Event "44th Chess Olympiad Women 2022"]
[Site "Chennai"]
[Date "2022.08.09"]
[Round "11.18"]
[White "Brunello, Marina"]
[Black "Corrales Jimenez, Zenia"]
[Result "1/2-1/2"]
[ECO "B76"]
[WhiteElo "2341"]
[BlackElo "2143"]
[Annotator "RC"]
[PlyCount "86"]
[EventDate "2022.07.29"]
[EventType "team-tourn"]
[EventCountry "IND"]
[SourceTitle "playchess.com"]
[Source "ChessBase"]
[SourceQuality "1"]
[WhiteTeam "Italy"]
[BlackTeam "Mexico"]
[WhiteTeamCountry "ITA"]
[BlackTeamCountry "MEX"]
[TimeControl "40/5400+30:1800+30"]

1. e4 {[%emt 0:00:04]} c5 {[%emt 0:00:13]} 2. Nf3 {[%emt 0:00:12]} d6 {[%emt 0:00:13]} 3. d4 {[%emt 0:00:05]} cxd4 {[%emt 0:00:09]} 4. Nxd4 {[%emt 0:00:04]} Nf6 {[%emt 0:00:12]} 5. Nc3 {[%emt 0:00:05]} g6 {[%emt 0:00:31]} 6. Be3 {[%emt 0:00:08]} Bg7 {[%emt 0:00:05]} 7. f3 {[%emt 0:00:05]} O-O {[%emt 0:00:18]} 8. Qd2 {[%emt 0:00:51]} Nc6 {[%emt 0:00:12]} 9. O-O-O {[%emt 0:00:07]} d5 {[%emt 0:00:42]} 10. exd5 {[%emt 0:00:15]} Nxd5 {[%emt 0:00:46]} 11. Nxc6 {[%emt 0:00:12]} bxc6 {[%emt 0:00:05]} 12. Bd4 {[%emt 0:00:04]} Nxc3 {[%emt 0:03:10]} 13. Qxc3 {[%emt 0:03:52]} Bh6+ {[%emt 0:03:21]} 14. Be3 {[%emt 0:00:15]} Bxe3+ {[%emt 0:00:07]} 15. Qxe3 {[%emt 0:00:05]} Qb6 {[%emt 0:00:12]} 16. Qc3 {[%emt 0:01:23]} Ba6 {[%emt 0:12:17]} 17. h4 {[%emt 0:05:58]} Bxf1 {[%emt 0:02:59]} 18. Rhxf1 {[%emt 0:00:04]} Qb5 {[%emt 0:10:26]} 19. b3 {[%emt 0:06:00]} Rad8 {[%emt 0:06:25]} 20. g4 {[%emt 0:02:08]} Rd5 {[%emt 0:00:54]} 21. a4 {[%emt 0:04:36]} Qb6 {[%emt 0:03:10]} 22. Rfe1 {[%emt 0:05:33]} e6 {[%emt 0:03:41]} 23. h5 {[%emt 0:02:06]} Rfd8 {[%emt 0:02:06]} 24. Rxd5 {[%emt 0:05:58]} Rxd5 {[%emt 0:00:11]} 25. h6 {[%emt 0:00:40]} Qd4 {[%emt 0:02:14]} 26. Kb2 {[%emt 0:00:18]} Kf8 {[%emt 0:19:54]} 27. Qxd4 {[%emt 0:00:20]} Rxd4 {[%emt 0:00:02]} 28. Re5 {[%emt 0:00:06]} Ke7 {[%emt 0:03:03]} 29. Ra5 {[%emt 0:00:11]} Rd7 {[%emt 0:03:28]} 30. Kc3 {[%emt 0:00:17]} f6 {[%emt 0:00:54]} 31. f4 {[%emt 0:00:04]} e5 {[%emt 0:02:49]} 32. fxe5 {[%emt 0:00:51]} f5 {[%emt 0:00:01]} 33. gxf5 {[%emt 0:00:26]} gxf5 {[%emt 0:00:02]} 34. Rc5 {[%emt 0:00:11]} Ke6 {[%emt 0:01:05]} 35. Rxc6+ {[%emt 0:05:12]} Kxe5 {[%emt 0:00:02]} 36. Rc8 {[%emt 0:00:15]} f4 {[%emt 0:02:05]} 37. Rf8 {[%emt 0:00:58]} Ke4 {[%emt 0:04:05]} 38. b4 {[%emt 0:00:12]} f3 {[%emt 0:03:18]} 39. b5 {[%emt 0:01:33]} Ke3 {[%emt 0:04:00]} 40. Re8+ {[%emt 0:01:39]} Kf4 {[%emt 0:00:32]} 41. Rf8+ {[%emt 0:30:12]} Ke3 {[%emt 0:30:38]} 42. Re8+ {[%emt 0:00:59]} Kf4 {[%emt 0:01:18]} 43. Rf8+ {[%emt 0:00:21]} Ke5 {[%emt 0:00:00]} 1/2-1/2

[Event "44th Chess Olympiad Women 2022"]
[Site "Chennai"]
[Date "2022.08.09"]
[Round "11.18"]
[White "Gueci, Tea"]
[Black "Guillen Cristobal, Sandra N"]
[Result "1/2-1/2"]
[ECO "B31"]
[WhiteElo "2254"]
[BlackElo "1962"]
[Annotator "RC"]
[PlyCount "172"]
[EventDate "2022.07.29"]
[EventType "team-tourn"]
[EventCountry "IND"]
[SourceTitle "playchess.com"]
[Source "ChessBase"]
[SourceQuality "1"]
[WhiteTeam "Italy"]
[BlackTeam "Mexico"]
[WhiteTeamCountry "ITA"]
[BlackTeamCountry "MEX"]
[TimeControl "40/5400+30:1800+30"]

1. e4 {[%emt 0:00:03]} c5 {[%emt 0:00:20]} 2. Nf3 {[%emt 0:00:04]} Nc6 {[%emt 0:00:04]} 3. Bb5 {[%emt 0:00:03]} g6 {[%emt 0:00:07]} 4. c3 {[%emt 0:00:05]} Nf6 {[%emt 0:00:55]} 5. Qe2 {[%emt 0:00:07]} Bg7 {[%emt 0:00:48]} 6. O-O {[%emt 0:00:13]} O-O {[%emt 0:00:13]} 7. d4 {[%emt 0:00:05]} cxd4 {[%emt 0:00:42]} 8. cxd4 {[%emt 0:00:06]} d5 {[%emt 0:00:08]} 9. e5 {[%emt 0:00:05]} Ne4 {[%emt 0:00:21]} 10. Be3 {[%emt 0:00:05]} Bd7 {[%emt 0:02:15]} 11. Ne1 {[%emt 0:00:31]} f6 {[%emt 0:01:51]} 12. Bxc6 {[%emt 0:07:28]} Bxc6 {[%emt 0:01:46]} 13. f3 {[%emt 0:01:11]} Ng5 {[%emt 0:00:09]} 14. Qd2 {[%emt 0:08:12]} Ne6 {[%emt 0:01:23]} 15. exf6 {[%emt 0:01:59]} exf6 {[%emt 0:00:45]} 16. Nc3 {[%emt 0:02:36]} Qd7 {[%emt 0:03:30]} 17. Rd1 {[%emt 0:14:41]} Rad8 {[%emt 0:05:21]} 18. Bf2 {[%emt 0:04:21]} f5 {[%emt 0:03:11]} 19. Nd3 {[%emt 0:08:15]} f4 {[%emt 0:05:31]} 20. Rfe1 {[%emt 0:02:07]} Qd6 {[%emt 0:04:25]} 21. Ne5 {[%emt 0:02:50]} Rf5 {[%emt 0:00:26]} 22. Nxc6 {[%emt 0:05:17]} bxc6 {[%emt 0:03:35]} 23. Re2 {[%emt 0:01:21]} g5 {[%emt 0:12:46]} 24. Qd3 {[%emt 0:02:51]} Rf7 {[%emt 0:04:33]} 25. Rde1 {[%emt 0:01:52]} Re8 {[%emt 0:05:27]} 26. h3 {[%emt 0:13:26]} Qd7 {[%emt 0:07:34]} 27. Na4 {[%emt 0:03:14]} Ree7 {[%emt 0:01:52]} 28. Kf1 {[%emt 0:01:34]} Bf6 {[%emt 0:04:48]} 29. b3 {[%emt 0:03:07]} Ng7 {[%emt 0:01:08]} 30. Nc5 {[%emt 0:01:35]} Qc8 {[%emt 0:04:18]} 31. Qc2 {[%emt 0:05:17]} Rxe2 {[%emt 0:02:44]} 32. Rxe2 {[%emt 0:00:32]} Re7 {[%emt 0:00:28]} 33. Rxe7 {[%emt 0:01:56]} Bxe7 {[%emt 0:00:07]} 34. Nd3 {[%emt 0:00:31]} Qe6 {[%emt 0:04:19]} 35. Qe2 {[%emt 0:01:29]} Qxe2+ {[%emt 0:05:41]} 36. Kxe2 {[%emt 0:00:04]} Bd6 {[%emt 0:00:14]} 37. a4 {[%emt 0:05:44]} Kf7 {[%emt 0:04:13]} 38. Kd2 {[%emt 0:02:45]} Ke6 {[%emt 0:00:23]} 39. Kc3 {[%emt 0:00:53]} Nf5 {[%emt 0:01:11]} 40. Ne1 {[%emt 0:01:07]} a5 {[%emt 0:01:13]} 41. Nc2 {[%emt 0:02:18]} Be7 {[%emt 0:03:43]} 42. Kd3 {[%emt 0:02:59]} h5 {[%emt 0:03:05]} 43. Be1 {[%emt 0:02:35]} Bd8 {[%emt 0:00:27]} 44. b4 {[%emt 0:03:18]} axb4 {[%emt 0:00:09]} 45. Bxb4 {[%emt 0:00:47]} Kd7 {[%emt 0:11:01]} 46. Bd2 {[%emt 0:03:32]} Bc7 {[%emt 0:01:04]} 47. Bc3 {[%emt 0:02:43]} Bd6 {[%emt 0:01:19]} 48. Ke2 {[%emt 0:01:24]} Kc7 {[%emt 0:02:16]} 49. Ne1 {[%emt 0:03:56]} c5 {[%emt 0:04:36]} 50. dxc5 {[%emt 0:00:54]} Bxc5 {[%emt 0:00:05]} 51. Bf6 {[%emt 0:01:43]} Be7 {[%emt 0:02:46]} 52. Bxe7 {[%emt 0:02:23]} Nxe7 {[%emt 0:00:05]} 53. Nd3 {[%emt 0:00:45]} Nc6 {[%emt 0:00:15]} 54. h4 {[%emt 0:00:28]} Nd4+ {[%emt 0:02:11]} 55. Kf2 {[%emt 0:00:38]} gxh4 {[%emt 0:01:35]} 56. Nxf4 {[%emt 0:00:06]} Kc6 {[%emt 0:00:21]} 57. Nxh5 {[%emt 0:01:21]} Nf5 {[%emt 0:00:13]} 58. Nf4 {[%emt 0:02:02]} Kc5 {[%emt 0:00:38]} 59. Kg1 {[%emt 0:02:23]} d4 {[%emt 0:00:19]} 60. Kh2 {[%emt 0:00:14]} Kb4 {[%emt 0:00:41]} 61. Kh3 {[%emt 0:00:20]} Kxa4 {[%emt 0:01:22]} 62. Kg4 {[%emt 0:00:52]} Ne3+ {[%emt 0:00:46]} 63. Kxh4 {[%emt 0:00:15]} d3 {[%emt 0:00:05]} 64. Nxd3 {[%emt 0:00:43]} Nxg2+ {[%emt 0:00:06]} 65. Kg3 {[%emt 0:01:01]} Ne3 {[%emt 0:00:14]} 66. Kf4 {[%emt 0:00:38]} Ng2+ {[%emt 0:00:44]} 67. Ke4 {[%emt 0:00:33]} Kb5 {[%emt 0:00:35]} 68. Kd5 {[%emt 0:01:05]} Ne3+ {[%emt 0:00:34]} 69. Ke5 {[%emt 0:00:19]} Kc4 {[%emt 0:00:58]} 70. Ne1 {[%emt 0:00:27]} Nd5 {[%emt 0:02:09]} 71. Ng2 {[%emt 0:00:48]} Kc5 {[%emt 0:00:18]} 72. Nf4 {[%emt 0:00:30]} Ne7 {[%emt 0:01:49]} 73. Ke6 {[%emt 0:01:31]} Nc6 {[%emt 0:00:13]} 74. Ne2 {[%emt 0:00:03]} Nd8+ {[%emt 0:00:23]} 75. Kf6 {[%emt 0:01:13]} Kd6 {[%emt 0:01:03]} 76. f4 {[%emt 0:00:24]} Ne6 {[%emt 0:00:27]} 77. f5 {[%emt 0:00:05]} Nf8 {[%emt 0:00:30]} 78. Nd4 {[%emt 0:01:12]} Nd7+ {[%emt 0:00:29]} 79. Kg6 {[%emt 0:00:08]} Ne5+ {[%emt 0:01:16]} 80. Kg7 {[%emt 0:00:30]} Ng4 {[%emt 0:00:28]} 81. Nf3 {[%emt 0:00:20]} Ke7 {[%emt 0:01:27]} 82. Ng5 {[%emt 0:01:20]} Nf6 {[%emt 0:00:28]} 83. Nf3 {[%emt 0:00:50]} Nh5+ {[%emt 0:01:03]} 84. Kg6 {[%emt 0:00:32]} Nf4+ {[%emt 0:00:41]} 85. Kg5 {[%emt 0:00:04]} Ne6+ {[%emt 0:00:13]} 86. Kg4 {[%emt 0:00:55]} Ng7 {[%emt 0:00:19]} 1/2-1/2

[Event "44th Chess Olympiad Women 2022"]
[Site "Chennai"]
[Date "2022.08.09"]
[Round "11.18"]
[White "Guerrero Rodriguez, Alejandra"]
[Black "Zimina, Olga"]
[Result "0-1"]
[ECO "B10"]
[WhiteElo "2006"]
[BlackElo "2340"]
[Annotator "RC"]
[PlyCount "86"]
[EventDate "2022.07.29"]
[EventType "team-tourn"]
[EventCountry "IND"]
[SourceTitle "playchess.com"]
[Source "ChessBase"]
[SourceQuality "1"]
[WhiteTeam "Mexico"]
[BlackTeam "Italy"]
[WhiteTeamCountry "MEX"]
[BlackTeamCountry "ITA"]
[TimeControl "40/5400+30:1800+30"]

1. e4 {[%emt 0:00:30]} c6 {[%emt 0:00:05]} 2. Nf3 {[%emt 0:00:50]} d5 {[%emt 0:00:20]} 3. d3 {[%emt 0:00:10]} dxe4 {[%emt 0:00:13]} 4. dxe4 {[%emt 0:00:07]} Qxd1+ {[%emt 0:00:04]} 5. Kxd1 {[%emt 0:00:08]} g6 {[%emt 0:00:02]} 6. Be3 {[%emt 0:06:04]} Bg7 {[%emt 0:01:10]} 7. c3 {[%emt 0:00:25]} Nf6 {[%emt 0:01:48]} 8. Nbd2 {[%emt 0:01:26]} Ng4 {[%emt 0:00:15]} 9. Nc4 {[%emt 0:08:27]} Nxe3+ {[%emt 0:01:30]} 10. Nxe3 {[%emt 0:00:09]} Nd7 {[%emt 0:00:43]} 11. Bc4 {[%emt 0:06:03]} Nc5 {[%emt 0:02:38]} 12. e5 {[%emt 0:06:44]} b5 {[%emt 0:05:35]} 13. Be2 {[%emt 0:02:06]} Bd7 {[%emt 0:13:08]} 14. h4 {[%emt 0:08:47]} h5 {[%emt 0:02:18]} 15. Ke1 {[%emt 0:00:39]} Na4 {[%emt 0:04:21]} 16. Rb1 {[%emt 0:03:22]} O-O {[%emt 0:05:48]} 17. Bd1 {[%emt 0:09:54]} Nb6 {[%emt 0:01:18]} 18. Bb3 {[%emt 0:02:27]} Rad8 {[%emt 0:04:12]} 19. Rd1 {[%emt 0:01:52]} e6 {[%emt 0:07:31]} 20. Ke2 {[%emt 0:03:01]} Nd5 {[%emt 0:02:56]} 21. g3 {[%emt 0:01:18]} Bc8 {[%emt 0:02:11]} 22. Nd4 {[%emt 0:05:35]} Bb7 {[%emt 0:02:32]} 23. Bxd5 {[%emt 0:02:44]} exd5 {[%emt 0:00:33]} 24. e6 {[%emt 0:03:42]} Rde8 {[%emt 0:01:25]} 25. exf7+ {[%emt 0:05:08]} Rxf7 {[%emt 0:01:25]} 26. b4 {[%emt 0:04:03]} Bc8 {[%emt 0:00:59]} 27. Rd3 {[%emt 0:02:37]} Bg4+ {[%emt 0:01:06]} 28. Ke1 {[%emt 0:04:01]} Bd7 {[%emt 0:04:01]} 29. f4 {[%emt 0:01:24]} a5 {[%emt 0:03:51]} 30. a3 {[%emt 0:06:11]} axb4 {[%emt 0:11:13]} 31. axb4 {[%emt 0:00:08]} Bxd4 {[%emt 0:08:06]} 32. cxd4 {[%emt 0:00:45]} Ra8 {[%emt 0:00:04]} 33. Kf2 {[%emt 0:02:55]} Ra2+ {[%emt 0:00:24]} 34. Kf3 {[%emt 0:01:09]} Rb2 {[%emt 0:00:58]} 35. g4 {[%emt 0:00:49]} hxg4+ {[%emt 0:08:32]} 36. Nxg4 {[%emt 0:00:10]} Kg7 {[%emt 0:01:51]} 37. Ne5 {[%emt 0:01:14]} Bf5 {[%emt 0:00:04]} 38. Re3 {[%emt 0:01:27]} Ra7 {[%emt 0:02:36]} 39. Nxc6 {[%emt 0:00:33]} Raa2 {[%emt 0:00:22]} 40. Rg1 {[%emt 0:00:37]} Rf2+ {[%emt 0:01:09]} 41. Kg3 {[%emt 0:30:09]} Rh2 {[%emt 0:30:18]} 42. Kf3 {[%emt 0:00:00]} Raf2+ {[%emt 0:00:00]} 43. Kg3 {[%emt 0:00:00]} Rc2 {[%emt 0:00:00]} 0-1